bitfinex-derivatives/quotes_ETHF0:USTF0_20250627
["timestamp","ask_amount","ask_price","bid_price","bid_amount"]
[1751007703228,0.6816,2450.0,2449.7,31.57202]
[1751007703423,0.408,2449.9,2449.7,34.00316351]
[1751007704326,1.08959,2450.0,2449.8,0.40801]
[1751007704528,3.2078,2450.6,2449.9,30.43294351]
[1751007704732,1.62704505,2450.5,2450.2,3.2078]
[1751007704937,0.6759,2450.5,2450.4,0.40791]
[1751007705132,0.40782,2451.0,2450.7,0.40786]
[1751007705332,0.40782,2451.0,2450.8,24.794]
[1751007705533,0.40783,2450.9,2450.8,24.794]
[1751007705833,1.3457,2451.1,2450.8,24.794]
[1751007705834,0.40782,2451.0,2450.8,24.794]
[1751007706034,0.40783,2450.9,2450.8,24.794]
[1751007706333,0.40782,2451.0,2450.8,25.20185]
[1751007707334,0.40782,2451.0,2450.8,26.54495]
[1751007707533,0.6759,2451.1,2451.0,0.40781]
[1751007707734,0.40778,2451.3,2451.0,31.57181]
[1751007707938,0.40778,2451.3,2451.0,32.91491]
[1751007708333,2.84651197,2451.3,2451.0,32.91491]
[1751007708741,0.40778,2451.2,2451.0,32.5071]
[1751007708941,2.84650197,2451.3,2451.0,32.91491]
[1751007709238,2.84650197,2451.3,2451.0,32.5071]
[1751007709543,2.43873197,2451.3,2451.0,32.5071]
[1751007709736,2.84650197,2451.3,2451.1,0.4078]
[1751007709932,2.43873197,2451.3,2451.2,24.791]
[1751007710137,0.40776,2451.3,2451.2,27.9988]
[1751007710334,0.40776,2451.3,2451.2,3.2078]
[1751007710539,0.40783,2450.9,2450.8,2.43114351]
[1751007710739,0.40785,2450.8,2450.7,2.43114351]
[1751007710940,0.40785,2450.8,2450.7,31.16]
[1751007711340,0.40786,2450.7,2450.6,5.63894351]
[1751007711840,0.40786,2450.7,2450.6,34.3658]
[1751007712047,0.40786,2450.7,2450.6,3.2078]
[1751007712447,0.4079,2450.5,2450.4,2.43114351]
[1751007712748,0.4079,2450.5,2450.4,31.158]
[1751007712944,0.40791,2450.4,2450.3,5.63894351]
[1751007713143,0.40791,2450.4,2450.3,36.79694351]
[1751007713849,0.40791,2450.5,2450.3,36.79694351]
[1751007714037,0.40791,2450.5,2450.3,38.11654351]
[1751007714242,0.40791,2450.4,2450.3,38.11654351]
[1751007717547,0.40791,2450.4,2450.3,6.95854351]
[1751007717744,0.40791,2450.4,2450.3,38.11554351]
[1751007717941,0.40791,2450.4,2450.3,5.63894351]
[1751007718244,0.40791,2450.4,2450.3,34.3648]
[1751007721846,0.40791,2450.4,2450.3,3.2078]
[1751007722052,0.40796,2450.1,2450.0,2.43114351]
[1751007722351,0.40798,2450.0,2449.9,54.61494351]
[1751007722551,0.40798,2450.0,2449.9,34.3668]
[1751007724752,0.6777,2450.2,2449.7,3.81244351]
[1751007724950,0.408,2449.9,2449.8,31.159]
[1751007725756,0.40803,2449.7,2449.6,9.5778]
[1751007725952,0.40803,2449.7,2449.6,34.3668]
[1751007726455,0.40803,2449.7,2449.6,9.5778]
[1751007726853,0.40803,2449.7,2449.6,34.3688]
[1751007730659,0.6651,2449.8,2449.6,34.3688]
[1751007730853,0.40801,2449.9,2449.6,34.3688]
[1751007731053,0.40801,2449.9,2449.7,1.3158]
[1751007731254,0.698,2450.0,2449.8,24.792]
[1751007731457,1.10599,2450.0,2449.9,1.3158]
[1751007732150,0.40799,2450.0,2449.9,4.5236]
[1751007732551,3.2078,2450.7,2449.9,15.8926]
[1751007732750,0.7252,2450.6,2450.0,24.793]
[1751007732958,0.40795,2450.2,2450.0,24.793]
[1751007733156,0.40795,2450.2,2450.0,26.1088]
[1751007734263,3.2078,2450.4,2450.1,31.166]
[1751007734463,0.40798,2450.0,2449.9,3.2078]
[1751007734658,0.40798,2450.0,2449.9,34.3828]
[1751007735068,0.40798,2450.0,2449.9,34.3808]
[1751007742562,0.40798,2450.0,2449.9,28.0118]
[1751007742764,0.40798,2450.0,2449.9,27.9998]
[1751007743466,0.40799,2449.9,2449.8,6.369]
[1751007743767,0.40799,2449.9,2449.8,31.161]
[1751007744565,0.40801,2449.8,2449.7,2.43114351]
[1751007744867,0.40801,2449.8,2449.7,33.59214351]
[1751007745160,0.40801,2449.8,2449.7,31.161]
[1751007745354,0.40801,2449.8,2449.7,8.80014351]
[1751007745560,0.40801,2449.8,2449.7,31.161]
[1751007746058,0.40803,2449.7,2449.6,9.5768]
[1751007746257,0.40803,2449.7,2449.6,34.3688]
[1751007747269,0.40803,2449.7,2449.6,36.79994351]
[1751007748765,0.40803,2449.7,2449.6,34.3688]
[1751007748964,0.40803,2449.7,2449.6,28.0008]
[1751007750067,0.40803,2449.7,2449.6,3.2078]
[1751007750265,0.40803,2449.7,2449.6,28.0018]
[1751007755168,0.40803,2449.7,2449.6,24.794]
[1751007757469,0.40804,2449.6,2449.5,3.2078]
[1751007757669,0.40804,2449.6,2449.5,28.0028]
[1751007760464,0.40804,2449.6,2449.5,3.2078]
[1751007760662,0.40804,2449.6,2449.5,28.0028]
[1751007761469,0.40804,2449.6,2449.5,3.2078]
[1751007761669,0.40804,2449.6,2449.5,28.0028]
[1751007764974,0.6953,2449.9,2449.5,28.0028]
[1751007765173,3.9191,2450.2,2449.6,2.0236]
[1751007765376,0.408,2449.9,2449.7,26.125]
[1751007765675,0.408,2449.9,2449.8,1.33]
[1751007768363,0.40801,2449.8,2449.7,31.8273]
[1751007768773,0.40801,2449.8,2449.7,33.2009]
[1751007769774,0.40801,2449.8,2449.7,32.5376]
[1751007772280,0.40801,2449.8,2449.7,6.369]
[1751007772575,0.40801,2449.8,2449.7,31.163]
[1751007774381,0.40801,2449.8,2449.5,8.06154351]
[1751007774382,0.40804,2449.6,2449.5,6.62904351]
[1751007774681,0.40804,2449.6,2449.5,30.43194351]
[1751007775274,0.40804,2449.6,2449.5,31.86444351]
[1751007779084,0.40804,2449.6,2449.5,7.07144351]
[1751007779282,0.40804,2449.6,2449.5,38.23244351]
[1751007780285,0.40804,2449.6,2449.5,38.64050351]
[1751007780674,0.40804,2449.6,2449.5,38.23244351]
[1751007784283,0.40804,2449.7,2449.5,38.64050351]
[1751007784483,0.6691,2449.9,2449.5,38.64050351]
[1751007784681,0.40804,2449.6,2449.5,36.79994351]
[1751007785483,0.40804,2449.6,2449.5,37.20800351]
[1751007786295,0.6691,2449.9,2449.5,36.79994351]
[1751007786482,0.40802,2449.8,2449.6,2.83918351]
[1751007786786,0.40802,2449.8,2449.7,24.791]
[1751007786989,0.40802,2449.8,2449.7,25.4666]
[1751007787281,0.40797,2450.1,2449.9,0.40799]
[1751007787480,0.40795,2450.2,2450.0,28.40677]
[1751007787681,0.40795,2450.2,2450.1,24.791]
[1751007787882,1.35569739,2450.2,2450.1,24.791]
[1751007788081,0.94774739,2450.2,2450.1,31.56796]
[1751007788482,0.6684,2450.7,2450.2,0.40793]
[1751007788682,0.94754043,2450.6,2450.3,27.9988]
[1751007788988,0.6684,2450.7,2450.3,27.9988]
[1751007788989,0.40791,2450.4,2450.3,28.6744]
[1751007789686,0.40791,2450.4,2450.3,3.2078]
[1751007789982,0.40791,2450.4,2450.3,27.9978]
[1751007793995,0.40791,2450.4,2450.3,3.2078]
[1751007794293,0.40791,2450.4,2450.3,27.9958]
[1751007797693,0.40791,2450.4,2450.3,30.0168]
[1751007797990,0.4079,2450.5,2450.3,30.0168]
[1751007798192,0.4079,2450.5,2450.4,1.3383]
[1751007798790,0.40791,2450.4,2450.3,27.9958]
[1751007798994,1.10001,2450.4,2450.3,27.9958]
[1751007803595,1.10001,2450.4,2450.3,3.2078]
[1751007803792,1.10001,2450.4,2450.3,27.9918]
[1751007804400,1.10001,2450.4,2450.3,3.2078]
[1751007805098,2.04525333,2450.4,2450.3,3.2078]
[1751007805698,0.40793,2450.3,2450.2,24.783]
[1751007805902,0.40801,2449.8,2449.7,8.79614351]
[1751007806103,0.40801,2449.8,2449.7,31.148]
[1751007806298,0.40801,2449.8,2449.7,33.57914351]
[1751007806900,0.40801,2449.8,2449.7,31.148]
[1751007807103,0.40803,2449.7,2449.6,3.2078]
[1751007807308,1.11153,2449.7,2449.6,27.9908]
[1751007807604,1.11153,2449.7,2449.6,30.42194351]
[1751007808693,1.11153,2449.7,2449.6,27.9908]
[1751007808895,0.40802,2449.8,2449.6,27.9908]
[1751007809107,0.40802,2449.8,2449.6,29.85524]
[1751007809399,0.692,2450.0,2449.7,2.1587]
[1751007809604,1.09998,2450.0,2449.9,3.2078]
[1751007812008,0.40799,2449.9,2449.8,27.2298]
[1751007812204,0.40799,2449.9,2449.8,2.4468]
[1751007812407,0.40799,2449.9,2449.8,27.2308]
[1751007815512,0.7035,2450.2,2449.8,33.5968]
[1751007815711,1.11144,2450.2,2450.1,3.2078]
[1751007815910,2.05805416,2450.2,2450.1,3.2078]
[1751007816410,0.40796,2450.1,2450.0,24.784]
[1751007816629,1.35457416,2450.1,2450.0,24.784]
[1751007819023,1.35457416,2450.1,2449.8,4.1982]
[1751007819227,0.40799,2449.9,2449.8,28.9812]
[1751007820328,0.40799,2449.9,2449.8,4.1982]
[1751007820830,1.82409,2449.9,2449.8,4.1982]
[1751007821827,2.77077384,2449.9,2449.8,4.1982]
[1751007822226,5.70335354,2449.9,2449.8,4.1982]
[1751007823828,1.02006,2449.8,2449.4,24.783]
[1751007824023,0.40806,2449.5,2449.4,24.783]
[1751007824222,0.40808,2449.4,2449.3,6.363]
[1751007824421,1.08708,2449.4,2449.3,31.146]
[1751007825130,0.40809,2449.3,2449.2,13.42114351]
[1751007825333,0.40809,2449.3,2449.2,36.78494351]
[1751007826229,0.40809,2449.3,2449.2,34.3538]
[1751007829029,0.40809,2449.3,2449.2,9.5708]
[1751007829220,0.40809,2449.3,2449.2,34.3548]
[1751007830832,0.40809,2449.3,2449.2,3.2078]
[1751007831029,0.40809,2449.3,2449.2,27.9918]
[1751007833130,0.40809,2449.3,2449.2,30.9243797]
[1751007835838,0.40809,2449.3,2449.2,6.1403797]
[1751007836135,0.40809,2449.3,2449.2,32.2782797]
[1751007836333,0.40809,2449.3,2449.2,4.5617]
[1751007836525,0.40814,2449.0,2448.9,16.45676884]
[1751007836725,3.3407197,2449.0,2448.9,2.43114351]
[1751007836929,0.40824,2448.4,2448.3,4.06391252]
[1751007837131,0.40826,2448.3,2448.2,4.06391252]
[1751007837432,0.672,2448.3,2448.1,24.784]
[1751007837624,2.9325797,2448.2,2448.1,24.784]
[1751007838034,3.3408597,2448.2,2448.1,24.784]
[1751007838336,0.40829,2448.1,2448.0,44.0078]
[1751007838637,0.40829,2448.1,2448.0,68.7918]
[1751007839237,0.40829,2448.1,2448.0,44.0078]
[1751007840234,0.40829,2448.1,2448.0,3.2078]
[1751007840428,0.672,2448.3,2448.0,3.2078]
[1751007840629,0.40829,2448.1,2448.0,3.2078]
[1751007843530,0.40829,2448.1,2448.0,7.4621797]
[1751007844043,0.40829,2448.2,2448.0,7.4621797]
[1751007844230,0.40829,2448.2,2448.1,24.791]
[1751007844537,0.40829,2448.2,2448.1,26.1128]
[1751007844737,0.40829,2448.1,2448.0,3.2078]
[1751007845235,0.40829,2448.1,2448.0,27.9988]
[1751007845437,0.40829,2448.1,2448.0,3.2078]
[1751007845638,0.40829,2448.1,2448.0,27.9978]
[1751007847734,0.40829,2448.1,2448.0,3.2078]
[1751007848038,0.40829,2448.1,2448.0,27.9998]
[1751007849533,0.40829,2448.1,2448.0,29.4383]
[1751007850840,0.40827,2448.3,2448.1,0.40828]
[1751007851138,0.40827,2448.3,2448.2,29.8924797]
[1751007851337,0.6723,2448.5,2448.2,29.8924797]
[1751007851532,0.40824,2448.4,2448.3,1.4385]
[1751007852232,6.367,2448.7,2448.3,4.6463]
[1751007852233,0.4082,2448.7,2448.3,4.6463]
[1751007852433,0.4082,2448.7,2448.4,28.8159097]
[1751007852739,0.4082,2448.7,2448.5,1.3211]
[1751007853038,0.4082,2448.7,2448.6,27.7255797]
[1751007853236,0.4082,2448.7,2448.6,28.4549797]
[1751007853432,0.4082,2448.7,2448.6,25.5224]
[1751007854235,0.4082,2448.7,2448.6,24.793]
[1751007857836,3.2078,2448.0,2447.7,3.24128335]
[1751007858037,0.40844,2447.2,2447.1,7.00789005]
[1751007858241,0.40844,2447.2,2446.3,25.449]
[1751007858242,0.40854,2446.7,2446.3,25.449]
[1751007858539,0.40853,2446.7,2446.3,28.3815797]
[1751007858734,3.2078,2446.8,2446.2,50.7388]
[1751007858735,3.2078,2446.8,2446.5,2.9325797]
[1751007858937,3.61631,2446.8,2446.5,2.9325797]
[1751007859242,3.61628,2447.1,2446.7,2.9325797]
[1751007859542,3.2078,2447.1,2446.8,32.176]
[1751007859947,0.40849,2446.9,2446.8,32.176]
[1751007865434,0.40849,2447.0,2446.8,32.176]
[1751007865640,3.2078,2447.1,2446.8,32.176]
[1751007865849,2.43873197,2447.8,2446.9,2.41969]
[1751007865850,4.5317,2447.7,2446.9,2.41969]
[1751007866038,1.05555453,2447.6,2447.0,26.54777]
[1751007866344,1.05555453,2447.5,2447.1,1.75396]
[1751007866542,5.8755,2447.7,2447.2,32.147]
[1751007866745,0.40841,2447.4,2447.2,32.147]
[1751007866949,0.4084,2447.5,2447.2,32.147]
[1751007867151,0.4084,2447.5,2447.3,1.3455]
[1751007867450,0.4084,2447.5,2447.4,25.411]
[1751007870454,0.40839,2447.5,2447.4,25.411]
[1751007873842,5.64289085,2447.5,2447.0,0.7253]
[1751007874046,3.61624,2447.2,2447.1,32.113]
[1751007875255,0.40844,2447.3,2447.1,32.52146]
[1751007875455,0.40844,2447.3,2447.1,33.96836]
[1751007878357,0.40844,2447.3,2447.2,0.40844]
[1751007878552,3.2078,2447.6,2447.2,0.40844]
[1751007878553,0.40842,2447.4,2447.2,0.40844]
[1751007878755,0.6635,2447.7,2447.3,25.361]
[1751007878958,0.40839,2447.6,2447.4,0.4084]
[1751007879259,0.40839,2447.6,2447.5,32.088]
[1751007883355,0.40837,2447.7,2447.5,32.088]
[1751007883558,3.2078,2447.9,2447.5,32.088]
[1751007883756,3.2078,2447.9,2447.5,39.17379085]
[1751007883963,3.2078,2447.9,2447.8,0.40834]
[1751007884162,4.26666303,2447.9,2447.8,25.73334]
[1751007884559,1.05886303,2447.9,2447.8,25.325]
[1751007884865,1.46719303,2447.9,2447.8,25.325]
[1751007886763,0.40829,2448.2,2448.0,0.40831]
[1751007886964,1.06053132,2448.1,2448.0,32.48131]
[1751007887873,3.9063,2448.5,2448.2,0.40826]
[1751007888062,3.9063,2448.5,2448.3,25.74426]
[1751007888063,1.06128241,2448.4,2448.3,25.74426]
[1751007889165,1.06128241,2448.4,2448.3,25.336]
[1751007889867,1.46952241,2448.4,2448.3,25.336]
[1751007890255,1.06128241,2448.4,2448.3,25.74426]
[1751007891070,1.46952241,2448.4,2448.3,25.336]
[1751007891467,1.06128241,2448.4,2448.3,25.336]
[1751007891862,1.46952241,2448.4,2448.3,25.336]
[1751007892470,0.40824,2448.4,2448.3,25.336]
[1751007892660,4.31454,2448.5,2448.3,25.336]
[1751007892863,0.40824,2448.4,2448.3,25.336]
[1751007895371,0.40828,2448.2,2448.0,0.40831]
[1751007895567,0.40828,2448.2,2448.1,31.977]
[1751007897873,0.40827,2448.3,2448.1,32.38529]
[1751007898368,0.40824,2448.4,2448.1,31.977]
[1751007898673,0.40828,2448.2,2448.1,31.977]
[1751007898873,0.4083,2448.1,2447.9,1.3639]
[1751007899065,3.9063,2448.5,2448.0,32.36731]
[1751007899267,0.40829,2448.2,2448.0,32.36731]
[1751007899671,0.40829,2448.1,2448.0,31.959]
[1751007900775,1.3367,2448.4,2447.9,1.77222]
[1751007901076,1.3367,2448.4,2448.1,0.40828]
[1751007901578,0.40825,2448.4,2448.2,0.40827]
[1751007901877,0.40825,2448.4,2448.3,25.68326]
[1751007902065,3.9063,2448.5,2448.3,25.68326]
[1751007902066,4.31454,2448.5,2448.3,25.68326]
[1751007902268,0.40824,2448.4,2448.3,25.68326]
[1751007902466,0.40824,2448.4,2448.3,32.35726]
[1751007902767,0.40824,2448.4,2448.3,31.949]
[1751007903576,4.31454,2448.5,2448.3,31.949]
[1751007903773,3.2078,2448.5,2448.4,0.40824]
[1751007903973,0.4082,2448.7,2448.5,0.40822]
[1751007904183,1.46669395,2448.6,2448.5,25.261]
[1751007904877,0.40821,2448.6,2448.5,25.261]
[1751007905780,0.4082,2448.7,2448.5,25.66923]
[1751007906378,0.4082,2448.7,2448.5,25.261]
[1751007906578,0.4082,2448.7,2448.5,25.66923]
[1751007907476,0.4082,2448.7,2448.5,25.66922]
[1751007907477,0.40819,2448.7,2448.5,25.66922]
[1751007907678,2.42879,2448.8,2448.5,25.66922]
[1751007907878,1.46716065,2448.7,2448.5,25.66922]
[1751007908072,0.4082,2448.7,2448.5,25.66922]
[1751007908273,1.05912494,2448.6,2448.5,25.66922]
[1751007908481,1.46733494,2448.6,2448.5,25.261]
[1751007909383,1.46733494,2448.6,2448.4,0.40823]
[1751007909573,0.40821,2448.6,2448.5,6.673]
[1751007909776,15.93039187,2448.6,2448.1,6.673]
[1751007909974,0.40828,2448.2,2448.1,31.909]
[1751007910370,6.21540305,2448.2,2448.1,6.673]
[1751007912082,0.40829,2448.1,2448.0,31.911]
[1751007912282,1.86809,2448.1,2448.0,31.911]
[1751007912485,0.40832,2448.0,2447.9,31.904]
[1751007912681,1.86812,2448.0,2447.8,3.2078]
[1751007912883,1.86812,2448.0,2447.9,31.9]
[1751007913479,1.86812,2448.0,2447.9,31.897]
[1751007913781,0.40832,2448.0,2447.9,31.897]
[1751007914382,5.9396,2448.2,2447.5,0.40838]
[1751007914582,0.40837,2447.7,2447.6,31.893]
[1751007915785,0.40838,2447.6,2447.4,6.85652644]
[1751007915978,0.40838,2447.6,2447.5,31.889]
[1751007916380,0.40837,2447.7,2447.5,31.889]
[1751007916586,0.40838,2447.6,2447.5,31.889]
[1751007916984,0.40837,2447.7,2447.5,32.29739]
[1751007917291,0.40838,2447.6,2447.5,31.889]
[1751007919381,0.40838,2447.6,2447.5,6.674]
[1751007919585,0.40838,2447.6,2447.5,31.878]
[1751007920481,0.40838,2447.6,2447.4,3.61621]
[1751007920687,0.40838,2447.6,2447.5,31.79]
[1751007920886,0.40839,2447.5,2447.4,3.2078]
[1751007921086,0.40841,2447.4,2447.3,49.027]
[1751007921287,0.40844,2447.2,2447.1,6.44812644]
[1751007921487,7.04258942,2447.7,2447.1,38.64958644]
[1751007921699,0.728,2447.5,2447.2,0.40844]
[1751007921890,0.40842,2447.4,2447.3,25.193]
[1751007922694,0.40844,2447.3,2447.2,6.6]
[1751007923095,0.40844,2447.3,2447.2,31.787]
[1751007923588,4.5886,2447.3,2446.9,9.84132644]
[1751007923788,3.61628,2447.0,2446.9,31.804]
[1751007923992,0.4085,2446.9,2446.7,3.24032644]
[1751007924188,0.40851,2446.8,2446.7,3.24032644]
[1751007924496,0.40851,2446.8,2446.7,31.805]
[1751007926096,0.40853,2446.7,2446.6,52.25932644]
[1751007926296,0.40853,2446.7,2446.6,84.05432644]
[1751007926791,0.40853,2446.7,2446.6,80.814]
[1751007927394,0.40853,2446.7,2446.6,55.62]
[1751007927600,0.40853,2446.7,2446.6,80.816]
[1751007928696,0.40853,2446.7,2446.6,49.019]
[1751007928995,0.40853,2446.7,2446.6,80.801]
[1751007929388,0.40853,2446.7,2446.6,49.019]
[1751007929602,0.40859,2446.3,2446.2,6.602]
[1751007929795,3.61639,2446.3,2446.2,25.184]
[1751007930496,3.2078,2446.3,2446.2,25.184]
[1751007931793,3.2078,2446.3,2446.2,25.18]
[1751007932498,3.61639,2446.3,2446.2,25.18]
[1751007932901,5.65359,2446.3,2446.2,25.18]
[1751007933606,5.65359,2446.3,2446.0,0.40864]
[1751007933900,0.40861,2446.2,2446.1,25.174]
[1751007934099,1.78811,2446.2,2446.1,25.174]
[1751007934691,1.3795,2446.2,2446.1,25.174]
[1751007935290,1.78811,2446.2,2446.1,25.174]
[1751007935698,1.78811,2446.2,2446.1,25.166]
[1751007936198,4.72953232,2446.2,2446.1,25.166]
[1751007936398,4.72953232,2446.2,2446.0,25.169]
[1751007936704,4.32092232,2446.2,2446.0,25.57764]
[1751007937203,4.72954232,2446.2,2446.0,25.57264]
[1751007937403,4.72954232,2446.2,2446.0,25.164]
[1751007938705,4.32092232,2446.2,2446.0,25.57264]
[1751007938904,4.32092232,2446.2,2446.0,25.164]
[1751007939106,0.40863,2446.1,2446.0,25.164]
[1751007939506,4.32092232,2446.2,2446.0,25.57264]
[1751007939808,0.40863,2446.1,2446.0,25.164]
[1751007940008,4.72954232,2446.2,2446.0,25.57264]
[1751007940414,3.35003232,2446.2,2446.0,25.57264]
[1751007940709,3.35003232,2446.2,2446.0,0.40864]
[1751007940910,3.35003232,2446.2,2446.0,25.55264]
[1751007941403,1.09628,2446.4,2446.2,0.4086]
[1751007941609,1.09628,2446.4,2446.2,25.5526]
[1751007943007,0.6877,2446.4,2446.3,0.40859]
[1751007943312,3.61635,2446.6,2446.4,0.40857]
[1751007943508,3.61635,2446.6,2446.4,25.56457]
[1751007943709,3.2078,2446.6,2446.4,25.56457]
[1751007944310,3.61634,2446.6,2446.5,25.155]
[1751007946413,0.40856,2446.5,2446.3,1.13788]
[1751007946606,0.40856,2446.5,2446.4,31.745]
[1751007949009,6.14922232,2446.6,2446.3,0.7293]
[1751007949311,1.10386,2446.5,2446.4,25.135]
[1751007950315,0.6953,2446.5,2446.4,25.54358]
[1751007951316,3.2078,2446.6,2446.5,0.40856]
[1751007951517,3.2078,2446.6,2446.5,1.72786]
[1751007952911,3.2078,2446.9,2446.8,0.4085]
[1751007953116,4.26766089,2446.9,2446.8,25.5335]
[1751007953714,4.26766089,2446.9,2446.7,26.4513]
[1751007953715,0.40851,2446.8,2446.7,26.4513]
[1751007953917,1.05986089,2446.8,2446.7,26.85983]
[1751007954616,3.2078,2446.9,2446.8,0.40851]
[1751007954817,4.26854785,2446.9,2446.8,0.40851]
[1751007955118,4.26854785,2446.9,2446.8,1.75481]
[1751007956113,4.26854785,2446.9,2446.8,4.69623232]
[1751007957211,4.26854785,2446.9,2446.8,1.75481]
[1751007957711,4.67703785,2446.9,2446.8,31.668]
[1751007957912,4.67703785,2446.9,2446.8,32.07651]
[1751007958108,4.67703785,2446.9,2446.8,0.40851]
[1751007958312,4.26854785,2446.9,2446.8,0.40851]
[1751007958511,4.67703785,2446.9,2446.8,0.40851]
[1751007958912,4.67703785,2446.9,2446.7,1.73281]
[1751007959114,3.61629,2446.9,2446.7,3.11781]
[1751007959519,0.40851,2446.8,2446.7,2.7093]
[1751007959916,0.40851,2446.8,2446.7,32.9913]
[1751007960309,0.40851,2446.8,2446.7,1.3243]
[1751007960715,0.40854,2446.6,2446.4,1.79357]
[1751007960916,0.40854,2446.6,2446.5,31.665]
[1751007961720,0.40855,2446.6,2446.5,31.66]
[1751007961924,1.12662,2446.8,2446.6,0.40854]
[1751007962124,1.12662,2446.8,2446.7,25.106]
[1751007962621,0.40852,2446.8,2446.7,25.106]
[1751007963424,3.61631,2446.9,2446.7,25.51452]
[1751007963721,3.2078,2446.9,2446.7,30.06892232]
[1751007963922,3.6163,2446.9,2446.7,30.47744232]
[1751007964119,3.2078,2446.9,2446.7,30.06892232]
[1751007964319,3.6163,2446.9,2446.7,30.47744232]
[1751007964718,3.6163,2446.9,2446.8,0.40851]
[1751007965115,3.2078,2446.9,2446.7,27.1275]
[1751007965516,0.40851,2446.8,2446.7,25.7763]
[1751007965934,0.40851,2446.8,2446.7,1.07883]
[1751007966226,0.40851,2446.8,2446.7,32.3263]
[1751007966423,0.40851,2446.8,2446.6,1.11083]
[1751007966616,0.40851,2446.8,2446.7,31.647]
[1751007966821,3.34993232,2446.8,2446.7,31.647]
[1751007967021,3.34993232,2446.8,2446.7,25.091]
[1751007967334,0.40851,2446.8,2446.7,25.091]
[1751007967528,6.55772232,2446.9,2446.7,25.49952]
[1751007967733,0.40851,2446.8,2446.7,25.091]
[1751007972526,0.40851,2446.8,2446.7,25.49953]
[1751007972734,0.40851,2446.8,2446.7,25.091]
[1751007974133,1.47148621,2446.8,2446.7,25.091]
[1751007975333,1.47148621,2446.8,2446.7,25.49953]
[1751007978746,1.47148621,2446.8,2446.7,25.091]
[1751007978941,1.47148621,2446.8,2446.7,25.49953]
[1751007982941,1.47148621,2446.8,2446.7,25.091]
[1751007983642,1.47148621,2446.8,2446.7,25.49953]
[1751007985951,1.06297621,2446.8,2446.7,25.49953]
[1751007986449,1.06297621,2446.8,2446.7,26.87163]
[1751007988247,3.2078,2447.3,2446.7,34.6709]
[1751007988450,3.61624,2447.3,2447.1,0.40846]
[1751007988654,3.61624,2447.3,2447.2,25.006]
[1751007988847,3.61624,2447.3,2447.2,24.60762456]
[1751008000054,4.67302332,2447.3,2447.2,24.60762456]
[1751008000857,0.40846,2447.1,2446.9,4.99652232]
[1751008001057,0.40846,2447.1,2447.0,31.458]
[1751008003259,0.40846,2447.1,2447.0,31.86648]
[1751008003758,0.40846,2447.1,2447.0,31.458]
[1751008004455,1.46499188,2447.1,2447.0,31.458]
[1751008006352,1.46499188,2447.1,2446.9,2.46359]
[1751008006552,0.40846,2447.1,2447.0,31.444]
[1751008008162,0.40848,2447.0,2446.9,0.6579]
[1751008008362,0.40848,2447.0,2446.9,32.1019]
[1751008008762,0.40848,2447.0,2446.9,32.1009]
[1751008009661,0.40848,2447.0,2446.9,32.0499]
[1751008010458,0.40848,2447.0,2446.8,1.43050723]
[1751008010660,0.40848,2447.0,2446.9,31.392]
[1751008010962,0.40848,2447.0,2446.9,31.80049]
[1751008012560,0.40847,2447.1,2446.9,34.74191232]
[1751008013065,0.40848,2447.0,2446.9,34.74191232]
[1751008014266,0.40848,2447.0,2446.9,34.33342232]
[1751008014758,0.40849,2446.9,2446.8,0.6982]
[1751008014958,0.40849,2446.9,2446.8,31.392]
[1751008015354,1.12149,2446.9,2446.8,31.392]
[1751008016264,1.4224,2447.2,2446.8,32.12166645]
[1751008016459,0.40848,2447.0,2446.8,32.12166645]
[1751008016969,0.40848,2447.0,2446.9,0.40849]
[1751008017170,1.46526563,2447.0,2446.9,0.40849]
[1751008017667,1.05678563,2447.0,2446.9,0.40849]
[1751008018368,1.05678563,2447.0,2446.9,31.80149]
[1751008018970,1.46526563,2447.0,2446.9,31.393]
[1751008019972,0.4085,2446.9,2446.7,3.61632]
[1751008020270,0.40849,2447.0,2446.8,31.8015]
[1751008020874,0.40849,2447.0,2446.9,31.393]
[1751008021065,1.4656381,2447.0,2446.9,31.393]
[1751008021368,1.0571481,2447.0,2446.9,31.80149]
[1751008021567,1.0571481,2447.0,2446.9,33.18759]
[1751008022867,0.40845,2447.2,2447.0,0.40847]
[1751008023067,0.40845,2447.2,2447.1,28.55362232]
[1751008023267,1.05708088,2447.2,2447.1,32.16988232]
[1751008023569,2.43873197,2447.8,2447.7,0.40836]
[1751008023774,3.24700648,2448.1,2448.0,0.40831]
[1751008024068,3.24700648,2448.1,2448.0,34.73973232]
[1751008024273,6.45480648,2448.2,2448.0,34.73973232]
[1751008025167,3.2078,2448.2,2448.0,34.73973232]
[1751008026667,3.2078,2448.2,2448.0,34.33142232]
[1751008026973,3.61608,2448.2,2448.0,34.33142232]
[1751008027976,3.2078,2448.2,2448.0,34.73973232]
[1751008028473,3.2078,2448.2,2448.0,35.06321169]
[1751008029278,3.2078,2448.2,2448.0,31.39]
[1751008029480,3.61609,2448.2,2448.0,31.39]
[1751008029775,3.61609,2448.2,2448.0,31.79831]
[1751008030276,3.61609,2448.2,2448.0,31.39]
[1751008030469,3.61609,2448.2,2448.0,0.40831]
[1751008030669,3.61609,2448.2,2448.1,31.383]
[1751008031365,3.2078,2448.2,2448.1,31.383]
[1751008034381,3.2078,2448.2,2448.0,3.34973232]
[1751008034581,3.2078,2448.2,2448.1,31.38]
[1751008034780,3.2078,2448.2,2448.1,31.78829]